[Event "Early-Titled-Tuesday-Blitz-January-16-2024"]
[Site "Chess.com"]
[Date "2024.01.16"]
[Round "6"]
[White "maximnovik"]
[Black "KorolDimitriy75"]
[Result "1-0"]
[WhiteElo "2517"]
[BlackElo "2352"]
[TimeControl "180+1"]
[EndTime "9:10:25 PST"]
[Termination "maximnovik won on time"]

1. e4 {[%clk 0:03:00.9]} 1... c5 {[%clk 0:02:59.7]} 2. Nf3 {[%clk 0:03:00.9]}
2... d6 {[%clk 0:03:00]} 3. d4 {[%clk 0:03:01.3]} 3... cxd4 {[%clk 0:03:00.9]}
4. Nxd4 {[%clk 0:03:01.7]} 4... Nf6 {[%clk 0:03:01.2]} 5. Nc3 {[%clk 0:03:01.9]}
5... g6 {[%clk 0:03:01.8]} 6. Be2 {[%clk 0:03:00.9]} 6... Bg7 {[%clk 0:03:01.8]}
7. O-O {[%clk 0:03:01.5]} 7... O-O {[%clk 0:03:02.4]} 8. Bg5 {[%clk 0:03:01.5]}
8... Nc6 {[%clk 0:03:02.7]} 9. Nb3 {[%clk 0:03:00.9]} 9... a6 {[%clk 0:03:02.8]}
10. f4 {[%clk 0:02:59.6]} 10... b5 {[%clk 0:03:02.8]} 11. Bf3 {[%clk 0:03:00.1]}
11... Bb7 {[%clk 0:03:02.7]} 12. Kh1 {[%clk 0:02:57.1]} 12... Nd7 {[%clk
0:02:53.8]} 13. Qd2 {[%clk 0:02:44.4]} 13... Re8 {[%clk 0:02:52.6]} 14. Rad1
{[%clk 0:02:40.7]} 14... b4 {[%clk 0:02:39]} 15. Nd5 {[%clk 0:02:40.2]} 15...
Bxb2 {[%clk 0:02:29.9]} 16. e5 {[%clk 0:02:35.6]} 16... Qb8 {[%clk 0:01:35.5]}
17. c4 {[%clk 0:01:43.2]} 17... bxc3 {[%clk 0:01:33]} 18. Nxc3 {[%clk
0:01:42.8]} 18... Ba3 {[%clk 0:01:11.7]} 19. Nd5 {[%clk 0:01:29]} 19... e6
{[%clk 0:01:00.8]} 20. Nf6+ {[%clk 0:01:27.7]} 20... Nxf6 {[%clk 0:01:00.6]} 21.
exf6 {[%clk 0:01:11.1]} 21... d5 {[%clk 0:01:00]} 22. f5 {[%clk 0:01:05.7]}
22... Bd6 {[%clk 0:00:44.4]} 23. fxe6 {[%clk 0:01:01.1]} 23... Rxe6 {[%clk
0:00:30.1]} 24. Bxd5 {[%clk 0:01:00.8]} 24... Bb4 {[%clk 0:00:27.2]} 25. Qf2
{[%clk 0:00:51.1]} 25... Re8 {[%clk 0:00:23.1]} 26. Qh4 {[%clk 0:00:46.7]} 26...
Ne5 {[%clk 0:00:14.9]} 27. Qxb4 {[%clk 0:00:41.8]} 27... Bxd5 {[%clk 0:00:13]}
28. Qxb8 {[%clk 0:00:41.6]} 28... Bxg2+ {[%clk 0:00:12]} 29. Kxg2 {[%clk
0:00:41.8]} 29... Raxb8 {[%clk 0:00:12.7]} 30. Rfe1 {[%clk 0:00:39.7]} 30... h5
{[%clk 0:00:10.8]} 31. Bf4 {[%clk 0:00:38.9]} 31... Rb5 {[%clk 0:00:10]} 32.
Bxe5 {[%clk 0:00:38.6]} 32... Rbxe5 {[%clk 0:00:10]} 33. Rxe5 {[%clk 0:00:38.4]}
33... Rxe5 {[%clk 0:00:10.9]} 34. Rd6 {[%clk 0:00:35.9]} 34... Re2+ {[%clk
0:00:09.4]} 35. Kg3 {[%clk 0:00:35.8]} 35... Rxa2 {[%clk 0:00:10.3]} 36. Nc5
{[%clk 0:00:35.2]} 36... a5 {[%clk 0:00:09.6]} 37. Ne4 {[%clk 0:00:35.2]} 37...
a4 {[%clk 0:00:08.7]} 38. Ng5 {[%clk 0:00:35.2]} 38... Ra3+ {[%clk 0:00:02.1]}
39. Kf4 {[%clk 0:00:33.2]} 1-0

[Event "Early-Titled-Tuesday-Blitz-January-16-2024"]
[Site "Chess.com"]
[Date "2024.01.16"]
[Round "6"]
[White "jcibarra"]
[Black "Rud_Makarian"]
[Result "0-1"]
[WhiteElo "2863"]
[BlackElo "3034"]
[TimeControl "180+1"]
[EndTime "9:10:27 PST"]
[Termination "Rud_Makarian won by checkmate"]

1. e4 {[%clk 0:03:00.9]} 1... c5 {[%clk 0:02:58.9]} 2. Nf3 {[%clk 0:02:59.8]}
2... d6 {[%clk 0:02:58.4]} 3. d4 {[%clk 0:03:00]} 3... cxd4 {[%clk 0:02:59.3]}
4. Nxd4 {[%clk 0:03:00.8]} 4... Nf6 {[%clk 0:03:00.2]} 5. Nc3 {[%clk 0:03:00.6]}
5... Nc6 {[%clk 0:03:00.9]} 6. Nd5 {[%clk 0:02:59.8]} 6... e6 {[%clk 0:02:46.4]}
7. Nxf6+ {[%clk 0:02:58.9]} 7... Qxf6 {[%clk 0:02:47]} 8. Nb5 {[%clk 0:02:55.2]}
8... Qd8 {[%clk 0:02:47.5]} 9. c4 {[%clk 0:02:55.1]} 9... Be7 {[%clk 0:02:47]}
10. Be2 {[%clk 0:02:53.3]} 10... O-O {[%clk 0:02:45.9]} 11. O-O {[%clk
0:02:53.1]} 11... a6 {[%clk 0:02:46]} 12. Nc3 {[%clk 0:02:53.1]} 12... b6 {[%clk
0:02:39.3]} 13. Be3 {[%clk 0:02:52.8]} 13... Ne5 {[%clk 0:02:38.7]} 14. f4
{[%clk 0:02:51.7]} 14... Nd7 {[%clk 0:02:38.8]} 15. b4 {[%clk 0:02:42.2]} 15...
Bb7 {[%clk 0:02:38.3]} 16. Qb3 {[%clk 0:02:42.5]} 16... Rc8 {[%clk 0:02:37.6]}
17. Rac1 {[%clk 0:02:42]} 17... Qc7 {[%clk 0:02:38.2]} 18. Rfd1 {[%clk
0:02:37.4]} 18... Qb8 {[%clk 0:02:35.5]} 19. Bd3 {[%clk 0:02:14.4]} 19... Nf6
{[%clk 0:02:34.3]} 20. Bb1 {[%clk 0:02:07.1]} 20... Ng4 {[%clk 0:02:30.6]} 21.
Bxb6 {[%clk 0:01:12.6]} 21... Bxe4 {[%clk 0:02:13.7]} 22. Nxe4 {[%clk
0:01:07.8]} 22... Qxb6+ {[%clk 0:02:13.6]} 23. c5 {[%clk 0:01:08.5]} 23... dxc5
{[%clk 0:01:58.5]} 24. bxc5 {[%clk 0:01:08.5]} 24... Qa7 {[%clk 0:01:58.3]} 25.
h3 {[%clk 0:01:07]} 25... Bxc5+ {[%clk 0:01:50.5]} 26. Kh1 {[%clk 0:00:49.1]}
26... Nf2+ {[%clk 0:01:47.7]} 27. Nxf2 {[%clk 0:00:49.1]} 27... Bxf2 {[%clk
0:01:48.6]} 28. Rxc8 {[%clk 0:00:42.4]} 28... Rxc8 {[%clk 0:01:48.9]} 29. Qc2
{[%clk 0:00:43]} 29... Qc5 {[%clk 0:01:27.3]} 30. Qxh7+ {[%clk 0:00:39.8]} 30...
Kf8 {[%clk 0:01:27.8]} 31. Qh8+ {[%clk 0:00:33.2]} 31... Ke7 {[%clk 0:01:27.7]}
32. Qxg7 {[%clk 0:00:33.8]} 32... Rd8 {[%clk 0:01:21.7]} 33. Qg4 {[%clk
0:00:27.4]} 33... Rxd1+ {[%clk 0:01:11.4]} 34. Qxd1 {[%clk 0:00:27]} 34... Bg3
{[%clk 0:01:08.7]} 35. Qc2 {[%clk 0:00:14.9]} 35... Qa5 {[%clk 0:00:58]} 36. Qe2
{[%clk 0:00:10.3]} 36... Bxf4 {[%clk 0:00:57.9]} 37. g4 {[%clk 0:00:09.6]} 37...
Qc3 {[%clk 0:00:56.6]} 38. Bd3 {[%clk 0:00:10.1]} 38... Bb8 {[%clk 0:00:50.8]}
39. Kg2 {[%clk 0:00:08]} 39... Qc7 {[%clk 0:00:51.3]} 40. Bxa6 {[%clk
0:00:03.2]} 40... Qh2+ {[%clk 0:00:50.1]} 41. Kf3 {[%clk 0:00:03.9]} 41... Qxh3+
{[%clk 0:00:50.3]} 42. Ke4 {[%clk 0:00:04]} 42... Qc3 {[%clk 0:00:47.2]} 43. Bd3
{[%clk 0:00:03.5]} 43... Qe5+ {[%clk 0:00:45.8]} 44. Kf3 {[%clk 0:00:03.9]}
44... Qf4+ {[%clk 0:00:46]} 45. Kg2 {[%clk 0:00:03.2]} 45... Qg3+ {[%clk
0:00:46.5]} 46. Kf1 {[%clk 0:00:03]} 46... Ba7 {[%clk 0:00:46.6]} 47. Qe4 {[%clk
0:00:01.7]} 47... Qf2# {[%clk 0:00:46.5]} 0-1

[Event "Early-Titled-Tuesday-Blitz-January-16-2024"]
[Site "Chess.com"]
[Date "2024.01.16"]
[Round "6"]
[White "profedechess93"]
[Black "Seochesspie"]
[Result "1/2-1/2"]
[WhiteElo "2644"]
[BlackElo "2804"]
[TimeControl "180+1"]
[EndTime "9:10:29 PST"]
[Termination "Game drawn by repetition"]

1. e4 {[%clk 0:03:00.9]} 1... c5 {[%clk 0:02:59.7]} 2. Nf3 {[%clk 0:03:01.1]}
2... d6 {[%clk 0:03:00.2]} 3. Bb5+ {[%clk 0:03:01.2]} 3... Nd7 {[%clk
0:03:00.1]} 4. d4 {[%clk 0:03:00.8]} 4... cxd4 {[%clk 0:03:00.1]} 5. Qxd4 {[%clk
0:03:01.7]} 5... a6 {[%clk 0:03:00.5]} 6. Bxd7+ {[%clk 0:03:01.8]} 6... Qxd7
{[%clk 0:02:59.6]} 7. Bg5 {[%clk 0:03:02.7]} 7... h6 {[%clk 0:02:57.1]} 8. Be3
{[%clk 0:03:02.3]} 8... Nf6 {[%clk 0:02:55.8]} 9. Nc3 {[%clk 0:03:01.4]} 9...
Qc6 {[%clk 0:02:55.1]} 10. e5 {[%clk 0:02:58.2]} 10... Ng4 {[%clk 0:02:50]} 11.
O-O-O {[%clk 0:02:55.7]} 11... Nxe3 {[%clk 0:02:45.1]} 12. Qxe3 {[%clk
0:02:53.9]} 12... e6 {[%clk 0:02:41.2]} 13. Nd4 {[%clk 0:02:41.3]} 13... Qc4
{[%clk 0:02:05.2]} 14. exd6 {[%clk 0:02:14.1]} 14... Bxd6 {[%clk 0:02:05]} 15.
Nxe6 {[%clk 0:02:13.1]} 15... Bxe6 {[%clk 0:02:03.7]} 16. Rxd6 {[%clk
0:02:13.6]} 16... O-O {[%clk 0:02:03.9]} 17. Rhd1 {[%clk 0:02:11]} 17... b5
{[%clk 0:02:02.7]} 18. Qd4 {[%clk 0:02:01.9]} 18... Qc7 {[%clk 0:02:02.6]} 19.
Nd5 {[%clk 0:01:57.6]} 19... Bxd5 {[%clk 0:01:45.5]} 20. Qxd5 {[%clk 0:01:47]}
20... Rac8 {[%clk 0:01:45.2]} 21. Qd3 {[%clk 0:01:45.6]} 21... a5 {[%clk
0:01:38.5]} 22. Kb1 {[%clk 0:01:41.8]} 22... Qc5 {[%clk 0:01:37.1]} 23. f4
{[%clk 0:01:21.5]} 23... b4 {[%clk 0:01:35.7]} 24. g4 {[%clk 0:01:15.2]} 24...
a4 {[%clk 0:01:35.5]} 25. g5 {[%clk 0:01:01.8]} 25... hxg5 {[%clk 0:01:33.3]}
26. Rd5 {[%clk 0:01:01.9]} 26... Qf2 {[%clk 0:01:31.8]} 27. Rxg5 {[%clk
0:00:56.4]} 27... Rfd8 {[%clk 0:01:20.3]} 28. Qxd8+ {[%clk 0:00:25.1]} 28...
Rxd8 {[%clk 0:01:20.5]} 29. Rxd8+ {[%clk 0:00:25.6]} 29... Kh7 {[%clk
0:01:21.4]} 30. Rh5+ {[%clk 0:00:23.1]} 30... Kg6 {[%clk 0:01:19.7]} 31. Rg5+
{[%clk 0:00:23.6]} 31... Kh7 {[%clk 0:01:14.7]} 32. Rh5+ {[%clk 0:00:23.2]}
32... Kg6 {[%clk 0:01:15]} 33. Rg5+ {[%clk 0:00:24.1]} 33... Kf6 {[%clk
0:01:13.2]} 34. Rd6+ {[%clk 0:00:23.4]} 34... Ke7 {[%clk 0:01:13.2]} 35. Rd1
{[%clk 0:00:22.4]} 35... Qxf4 {[%clk 0:01:11.3]} 36. Rxg7 {[%clk 0:00:21.7]}
36... a3 {[%clk 0:01:07.3]} 37. Rg3 {[%clk 0:00:17.8]} 37... Qe5 {[%clk
0:00:50.7]} 38. bxa3 {[%clk 0:00:16.4]} 38... bxa3 {[%clk 0:00:45.9]} 39. Rxa3
{[%clk 0:00:15.6]} 39... Qxh2 {[%clk 0:00:46.3]} 40. Re3+ {[%clk 0:00:15.4]}
40... Kf8 {[%clk 0:00:45.1]} 41. Rf3 {[%clk 0:00:14.7]} 41... Qb8+ {[%clk
0:00:44.1]} 42. Rb3 {[%clk 0:00:14.7]} 42... Qa7 {[%clk 0:00:43.7]} 43. Rf1
{[%clk 0:00:14.2]} 43... Qa6 {[%clk 0:00:42.5]} 44. Rbf3 {[%clk 0:00:14]} 44...
Qb5+ {[%clk 0:00:41.5]} 45. Ka1 {[%clk 0:00:14.1]} 45... Qe5+ {[%clk 0:00:41.3]}
46. Kb1 {[%clk 0:00:14.7]} 46... Qb5+ {[%clk 0:00:40.6]} 47. Ka1 {[%clk
0:00:14.9]} 47... Qe5+ {[%clk 0:00:40.8]} 48. Kb1 {[%clk 0:00:15.3]} 48... Qb5+
{[%clk 0:00:40.9]} 1/2-1/2

[Event "Early-Titled-Tuesday-Blitz-January-16-2024"]
[Site "Chess.com"]
[Date "2024.01.16"]
[Round "6"]
[White "AryanTari"]
[Black "azikom"]
[Result "1-0"]
[WhiteElo "2926"]
[BlackElo "2691"]
[TimeControl "180+1"]
[EndTime "9:10:32 PST"]
[Termination "AryanTari won on time"]

1. e4 {[%clk 0:02:49.6]} 1... e6 {[%clk 0:03:00]} 2. d4 {[%clk 0:02:46.4]} 2...
d5 {[%clk 0:03:00.9]} 3. exd5 {[%clk 0:02:47.3]} 3... exd5 {[%clk 0:03:00.7]} 4.
Nf3 {[%clk 0:02:47.9]} 4... c6 {[%clk 0:02:59.9]} 5. c4 {[%clk 0:02:43.1]} 5...
Nf6 {[%clk 0:02:59.1]} 6. Nc3 {[%clk 0:02:43.1]} 6... Be7 {[%clk 0:02:59.1]} 7.
Bd3 {[%clk 0:02:37.3]} 7... O-O {[%clk 0:02:57.3]} 8. O-O {[%clk 0:02:37.3]}
8... dxc4 {[%clk 0:02:57.2]} 9. Bxc4 {[%clk 0:02:37.5]} 9... Bg4 {[%clk
0:02:54.2]} 10. Be3 {[%clk 0:02:31.2]} 10... Nbd7 {[%clk 0:02:53.5]} 11. h3
{[%clk 0:02:31.3]} 11... Bh5 {[%clk 0:02:50.7]} 12. g4 {[%clk 0:02:30.5]} 12...
Bg6 {[%clk 0:02:51]} 13. Ne5 {[%clk 0:02:30.8]} 13... Nxe5 {[%clk 0:02:50.4]}
14. dxe5 {[%clk 0:02:30.8]} 14... Ne4 {[%clk 0:02:49.7]} 15. Nxe4 {[%clk
0:02:18]} 15... Bxe4 {[%clk 0:02:48.2]} 16. f3 {[%clk 0:02:17.8]} 16... Bg6
{[%clk 0:02:25.3]} 17. f4 {[%clk 0:01:58.8]} 17... Be4 {[%clk 0:02:23.2]} 18.
Qa4 {[%clk 0:01:53.9]} 18... Bd3 {[%clk 0:01:38.7]} 19. Rad1 {[%clk 0:01:12.5]}
19... b5 {[%clk 0:01:31.4]} 20. Bxf7+ {[%clk 0:01:12.6]} 20... Rxf7 {[%clk
0:01:29.6]} 21. Qb3 {[%clk 0:01:12.9]} 21... Bc4 {[%clk 0:01:23.8]} 22. Rxd8+
{[%clk 0:01:13.8]} 22... Rxd8 {[%clk 0:01:23.5]} 23. Qc2 {[%clk 0:01:10]} 23...
Bxf1 {[%clk 0:01:15.4]} 24. Kxf1 {[%clk 0:01:10.9]} 24... Bg5 {[%clk 0:01:08.8]}
25. e6 {[%clk 0:00:57.5]} 25... Rff8 {[%clk 0:01:08.1]} 26. Qxc6 {[%clk
0:00:39.3]} 26... Bxf4 {[%clk 0:01:05.2]} 27. e7 {[%clk 0:00:39.6]} 27... Bxe3+
{[%clk 0:01:04.9]} 28. exf8=Q+ {[%clk 0:00:39.9]} 28... Rxf8+ {[%clk 0:01:04.8]}
29. Ke2 {[%clk 0:00:40.5]} 29... Bb6 {[%clk 0:01:03.9]} 30. Qxb5 {[%clk
0:00:40.8]} 30... h6 {[%clk 0:01:00.1]} 31. a4 {[%clk 0:00:40.8]} 31... Kh8
{[%clk 0:00:57.5]} 32. a5 {[%clk 0:00:40.7]} 32... Bd4 {[%clk 0:00:57.3]} 33. b4
{[%clk 0:00:40.4]} 33... Bc3 {[%clk 0:00:47.8]} 34. Qc5 {[%clk 0:00:39]} 34...
Re8+ {[%clk 0:00:47.7]} 35. Kd3 {[%clk 0:00:39.4]} 35... Be1 {[%clk 0:00:44.2]}
36. a6 {[%clk 0:00:37]} 36... Rd8+ {[%clk 0:00:43.8]} 37. Ke2 {[%clk 0:00:36.7]}
37... Bh4 {[%clk 0:00:40.1]} 38. Qxa7 {[%clk 0:00:35.1]} 38... Rd2+ {[%clk
0:00:17.3]} 39. Kxd2 {[%clk 0:00:32.3]} 1-0

[Event "Early-Titled-Tuesday-Blitz-January-16-2024"]
[Site "Chess.com"]
[Date "2024.01.16"]
[Round "6"]
[White "AsterPhoenix"]
[Black "NoHeThTo"]
[Result "1-0"]
[WhiteElo "2584"]
[BlackElo "2703"]
[TimeControl "180+1"]
[EndTime "9:10:32 PST"]
[Termination "AsterPhoenix won by checkmate"]

1. e4 {[%clk 0:02:56.8]} 1... c5 {[%clk 0:02:56.1]} 2. b4 {[%clk 0:02:54]} 2...
cxb4 {[%clk 0:02:47.7]} 3. a3 {[%clk 0:02:54.2]} 3... d5 {[%clk 0:02:47.8]} 4.
exd5 {[%clk 0:02:54.3]} 4... Qxd5 {[%clk 0:02:48.7]} 5. Nf3 {[%clk 0:02:54.9]}
5... Nf6 {[%clk 0:02:42.7]} 6. axb4 {[%clk 0:02:52.5]} 6... Bg4 {[%clk
0:02:42.6]} 7. Nc3 {[%clk 0:02:46.4]} 7... Qe6+ {[%clk 0:02:36.3]} 8. Qe2 {[%clk
0:02:37]} 8... Bxf3 {[%clk 0:02:35.1]} 9. Qxe6 {[%clk 0:02:36.4]} 9... fxe6
{[%clk 0:02:34.9]} 10. gxf3 {[%clk 0:02:36.6]} 10... Nc6 {[%clk 0:02:34.1]} 11.
b5 {[%clk 0:02:20]} 11... Nd4 {[%clk 0:02:32.7]} 12. Kd1 {[%clk 0:02:20.5]}
12... e5 {[%clk 0:02:31.3]} 13. Bb2 {[%clk 0:01:58.5]} 13... g6 {[%clk 0:02:27]}
14. b6 {[%clk 0:01:53.4]} 14... a6 {[%clk 0:02:25]} 15. Nb5 {[%clk 0:01:52.3]}
15... O-O-O {[%clk 0:01:33.8]} 16. f4 {[%clk 0:00:50.5]} 16... Nxb5 {[%clk
0:00:56.2]} 17. Bxb5 {[%clk 0:00:47.1]} 17... axb5 {[%clk 0:00:51]} 18. fxe5
{[%clk 0:00:46.4]} 18... Bh6 {[%clk 0:00:50.4]} 19. exf6 {[%clk 0:00:37.7]}
19... Rxd2+ {[%clk 0:00:25.3]} 20. Ke1 {[%clk 0:00:37.4]} 20... Rxc2 {[%clk
0:00:12.7]} 21. Ra8+ {[%clk 0:00:32.4]} 21... Kd7 {[%clk 0:00:12.7]} 22. Rxh8
{[%clk 0:00:33.3]} 22... Rxb2 {[%clk 0:00:12.7]} 23. fxe7 {[%clk 0:00:22]} 23...
Kxe7 {[%clk 0:00:11.4]} 24. Rxh7+ {[%clk 0:00:22.3]} 24... Kd6 {[%clk
0:00:10.5]} 25. Kf1 {[%clk 0:00:18.2]} 25... Bf4 {[%clk 0:00:10]} 26. Kg2 {[%clk
0:00:17.9]} 26... Kc6 {[%clk 0:00:10.4]} 27. Rg7 {[%clk 0:00:16.5]} 27... Kxb6
{[%clk 0:00:10.3]} 28. Rxg6+ {[%clk 0:00:16.7]} 28... Ka5 {[%clk 0:00:10.6]} 29.
h4 {[%clk 0:00:17]} 29... b4 {[%clk 0:00:10.7]} 30. h5 {[%clk 0:00:16.8]} 30...
Be3 {[%clk 0:00:10.9]} 31. Rf6 {[%clk 0:00:16.8]} 31... b3 {[%clk 0:00:11.1]}
32. h6 {[%clk 0:00:15.5]} 32... Bd4 {[%clk 0:00:11.6]} 33. Rf5+ {[%clk
0:00:14.5]} 33... Kb4 {[%clk 0:00:11.7]} 34. h7 {[%clk 0:00:15.4]} 34... Rc2
{[%clk 0:00:11.5]} 35. Rf4 {[%clk 0:00:15.8]} 35... Kc5 {[%clk 0:00:10.2]} 36.
Rxd4 {[%clk 0:00:15.9]} 36... Kxd4 {[%clk 0:00:11.1]} 37. h8=Q+ {[%clk
0:00:15.4]} 37... Kc4 {[%clk 0:00:12]} 38. Rh4+ {[%clk 0:00:14.9]} 38... Kd3
{[%clk 0:00:12.1]} 39. Qd4+ {[%clk 0:00:14.3]} 39... Ke2 {[%clk 0:00:12.7]} 40.
Qe3+ {[%clk 0:00:14]} 40... Kd1 {[%clk 0:00:13]} 41. Rh1# {[%clk 0:00:14.8]} 1-0

[Event "Early-Titled-Tuesday-Blitz-January-16-2024"]
[Site "Chess.com"]
[Date "2024.01.16"]
[Round "6"]
[White "Zhigalko_Sergei"]
[Black "Andrey_Klymchuk"]
[Result "1-0"]
[WhiteElo "2961"]
[BlackElo "2801"]
[TimeControl "180+1"]
[EndTime "9:10:35 PST"]
[Termination "Zhigalko_Sergei won by resignation"]

1. e4 {[%clk 0:03:00.9]} 1... c6 {[%clk 0:02:59.3]} 2. d4 {[%clk 0:03:01.2]}
2... d5 {[%clk 0:02:59.7]} 3. e5 {[%clk 0:03:01.9]} 3... Bf5 {[%clk 0:03:00.2]}
4. Nf3 {[%clk 0:03:02.5]} 4... e6 {[%clk 0:03:00.1]} 5. Be2 {[%clk 0:03:03.2]}
5... Nd7 {[%clk 0:02:53.1]} 6. O-O {[%clk 0:03:03.7]} 6... a6 {[%clk 0:02:51.2]}
7. Nbd2 {[%clk 0:03:04.1]} 7... h6 {[%clk 0:02:49.8]} 8. c4 {[%clk 0:02:53.2]}
8... Ne7 {[%clk 0:02:27.4]} 9. c5 {[%clk 0:02:46.4]} 9... a5 {[%clk 0:02:27.2]}
10. a4 {[%clk 0:02:18.5]} 10... b6 {[%clk 0:02:26.2]} 11. Nb3 {[%clk 0:01:59.6]}
11... g5 {[%clk 0:01:39.8]} 12. Bd2 {[%clk 0:01:33.1]} 12... Ng6 {[%clk
0:01:35.1]} 13. Ne1 {[%clk 0:01:17.2]} 13... Nf4 {[%clk 0:01:29.4]} 14. Bxf4
{[%clk 0:01:06.9]} 14... gxf4 {[%clk 0:01:29.7]} 15. Bd3 {[%clk 0:01:06.5]}
15... Qg5 {[%clk 0:01:05.2]} 16. cxb6 {[%clk 0:01:03.1]} 16... Nxb6 {[%clk
0:01:02.1]} 17. Qc2 {[%clk 0:00:43]} 17... Kd7 {[%clk 0:00:54.3]} 18. Bxf5
{[%clk 0:00:34.8]} 18... exf5 {[%clk 0:00:48.7]} 19. Nf3 {[%clk 0:00:23.8]}
19... Qh5 {[%clk 0:00:41.2]} 20. e6+ {[%clk 0:00:19.9]} 20... fxe6 {[%clk
0:00:34.3]} 21. Ne5+ {[%clk 0:00:20]} 21... Ke7 {[%clk 0:00:33.4]} 22. Qxc6
{[%clk 0:00:20]} 22... Rg8 {[%clk 0:00:24.2]} 23. Qxb6 {[%clk 0:00:14.3]} 23...
f3 {[%clk 0:00:20.5]} 24. Qb7+ {[%clk 0:00:12.1]} 24... Kf6 {[%clk 0:00:20]} 25.
g3 {[%clk 0:00:11.7]} 25... Bd6 {[%clk 0:00:18.8]} 26. Nc5 {[%clk 0:00:08.8]}
26... Rad8 {[%clk 0:00:16]} 27. Ncd7+ {[%clk 0:00:08.2]} 27... Rxd7 {[%clk
0:00:16.4]} 28. Nxd7+ {[%clk 0:00:07.9]} 28... Kg6 {[%clk 0:00:16.5]} 29. Qb3
{[%clk 0:00:07.6]} 29... Qg4 {[%clk 0:00:15.3]} 30. Ra3 {[%clk 0:00:07.6]} 30...
Rd8 {[%clk 0:00:13.9]} 31. Ne5+ {[%clk 0:00:07.6]} 31... Bxe5 {[%clk 0:00:13.8]}
32. dxe5 {[%clk 0:00:08.5]} 32... Rb8 {[%clk 0:00:12.3]} 33. Qxb8 {[%clk
0:00:07.5]} 33... Qh3 {[%clk 0:00:12]} 34. Qg8+ {[%clk 0:00:07]} 34... Kh5
{[%clk 0:00:11.5]} 35. Rxf3 {[%clk 0:00:07.3]} 1-0

[Event "Early-Titled-Tuesday-Blitz-January-16-2024"]
[Site "Chess.com"]
[Date "2024.01.16"]
[Round "6"]
[White "laiciffOneslraCsungaM"]
[Black "masterofpuppets2"]
[Result "0-1"]
[WhiteElo "2373"]
[BlackElo "2532"]
[TimeControl "180+1"]
[EndTime "9:10:36 PST"]
[Termination "masterofpuppets2 won by resignation"]

1. d4 {[%clk 0:03:00.8]} 1... d5 {[%clk 0:02:59.3]} 2. Nc3 {[%clk 0:02:56.8]}
2... Nf6 {[%clk 0:02:58.3]} 3. Bf4 {[%clk 0:02:56.1]} 3... a6 {[%clk 0:02:58.6]}
4. e3 {[%clk 0:02:54.9]} 4... e6 {[%clk 0:02:58.3]} 5. g4 {[%clk 0:02:54.5]}
5... b5 {[%clk 0:02:55.2]} 6. h4 {[%clk 0:02:39.6]} 6... Bb7 {[%clk 0:02:47.5]}
7. Bg2 {[%clk 0:02:10.6]} 7... c5 {[%clk 0:02:46.6]} 8. Qf3 {[%clk 0:02:02.7]}
8... Nc6 {[%clk 0:02:41.8]} 9. Nge2 {[%clk 0:02:01.9]} 9... Qb6 {[%clk
0:02:37.9]} 10. O-O-O {[%clk 0:02:00.4]} 10... b4 {[%clk 0:02:15.6]} 11. Na4
{[%clk 0:01:57.9]} 11... Qa5 {[%clk 0:02:15.9]} 12. Nxc5 {[%clk 0:01:58.5]}
12... Bxc5 {[%clk 0:02:15.8]} 13. dxc5 {[%clk 0:01:59.4]} 13... Qxc5 {[%clk
0:02:16.4]} 14. Kb1 {[%clk 0:01:59]} 14... Ne4 {[%clk 0:02:05.2]} 15. Ng3 {[%clk
0:01:55.3]} 15... Nf6 {[%clk 0:01:26]} 16. g5 {[%clk 0:01:46.3]} 16... Nd7
{[%clk 0:01:25.4]} 17. Nh5 {[%clk 0:01:45.7]} 17... Rg8 {[%clk 0:01:25.1]} 18.
Qg3 {[%clk 0:01:43.4]} 18... O-O-O {[%clk 0:01:19.2]} 19. Bd6 {[%clk 0:01:42.3]}
19... Qb6 {[%clk 0:01:11]} 20. Nf4 {[%clk 0:01:35.8]} 20... Nc5 {[%clk
0:01:04.6]} 21. Nd3 {[%clk 0:01:24.1]} 21... Na4 {[%clk 0:00:54.3]} 22. h5
{[%clk 0:01:14.8]} 22... a5 {[%clk 0:00:48.4]} 23. g6 {[%clk 0:01:10.8]} 23...
hxg6 {[%clk 0:00:48.4]} 24. hxg6 {[%clk 0:01:11.7]} 24... f6 {[%clk 0:00:48.2]}
25. Bh3 {[%clk 0:01:00.2]} 25... Rde8 {[%clk 0:00:48.3]} 26. Ka1 {[%clk
0:00:42.4]} 26... Nd8 {[%clk 0:00:45]} 27. Rc1 {[%clk 0:00:33.3]} 27... Ba6
{[%clk 0:00:42.3]} 28. Rhd1 {[%clk 0:00:24.4]} 28... Kb7 {[%clk 0:00:41.4]} 29.
Bf4 {[%clk 0:00:23.7]} 29... Ka8 {[%clk 0:00:38.5]} 30. Ne5 {[%clk 0:00:24.6]}
30... fxe5 {[%clk 0:00:36.2]} 31. Bxe5 {[%clk 0:00:25.5]} 31... Nb7 {[%clk
0:00:33.1]} 32. Bc7 {[%clk 0:00:21.3]} 32... Qc6 {[%clk 0:00:31.3]} 33. Be5
{[%clk 0:00:19]} 33... Rc8 {[%clk 0:00:31.3]} 34. c3 {[%clk 0:00:18.1]} 34...
bxc3 {[%clk 0:00:29.3]} 35. b3 {[%clk 0:00:18.5]} 35... Nac5 {[%clk 0:00:28]}
36. Rxc3 {[%clk 0:00:16.3]} 36... Qd7 {[%clk 0:00:25.1]} 37. Bg2 {[%clk
0:00:13.7]} 37... Bb5 {[%clk 0:00:21.1]} 38. a4 {[%clk 0:00:12.8]} 38... Bxa4
{[%clk 0:00:20.5]} 39. bxa4 {[%clk 0:00:12.4]} 39... Qxa4+ {[%clk 0:00:20.5]}
40. Kb2 {[%clk 0:00:12.9]} 40... Qxd1 {[%clk 0:00:20.5]} 0-1